bitfinex/quotes_BTCUSD_20250110
["timestamp","ask_amount","ask_price","bid_price","bid_amount"]
[1736523316285,0.173,93465.0,93464.0,0.00114619]
[1736523316498,0.213951,93480.0,93464.0,0.00114619]
[1736523316699,0.09475389,93504.0,93465.0,0.10429976]
[1736523316700,0.1,93500.0,93465.0,0.10429976]
[1736523316813,0.427863,93488.0,93466.0,0.213981]
[1736523317024,0.15,93492.0,93468.0,0.213976]
[1736523317276,0.173,93485.0,93468.0,0.10429976]
[1736523317475,0.173,93485.0,93464.0,0.00114619]
[1736523317476,0.173,93485.0,93464.0,0.00014619]
[1736523317647,0.023,93474.0,93464.0,0.00014619]
[1736523318260,0.15,93487.0,93466.0,0.213981]
[1736523318461,0.15,93487.0,93471.0,0.213969]
[1736523318644,0.15,93485.0,93471.0,0.213969]
[1736523318845,0.213927,93490.0,93471.0,0.31826876]
[1736523319054,0.01136,93502.0,93472.0,0.10429976]
[1736523319339,0.023,93483.0,93466.0,0.213981]
[1736523319476,0.023,93483.0,93468.0,0.002]
[1736523319680,0.0216711,93499.0,93470.0,0.213972]
[1736523320022,0.213846,93526.0,93464.0,0.00014619]
[1736523320023,0.213883,93509.0,93493.0,0.213917]
[1736523320262,0.006,93502.0,93494.0,0.10429976]
[1736523320386,0.27200778,93522.0,93494.0,0.10429976]
[1736523320387,0.213877,93512.0,93494.0,0.10429976]
[1736523320602,0.09475389,93520.0,93495.0,0.00106948]
[1736523320807,0.09475389,93520.0,93496.0,0.10429976]
[1736523321009,0.09475389,93520.0,93496.0,0.18699976]
[1736523321212,0.213869,93515.0,93496.0,0.18699976]
[1736523321441,0.213869,93515.0,93509.0,0.213882]
[1736523321442,0.00014587,93515.0,93509.0,0.213882]
[1736523321664,0.00014587,93515.0,93510.0,0.10429976]
[1736523322277,0.00014587,93515.0,93511.0,0.213878]
[1736523322478,0.00014587,93515.0,93503.0,0.213895]
[1736523322655,0.023,93513.0,93499.0,0.213905]
[1736523322859,0.00014587,93515.0,93504.0,0.213892]
[1736523323063,0.00014587,93515.0,93500.0,0.10429976]
[1736523323271,0.023,93511.0,93487.0,0.213932]
[1736523323582,0.21389,93506.0,93494.0,0.10429976]
[1736523323782,0.173,93509.0,93494.0,0.10429976]
[1736523323988,0.023,93508.0,93495.0,0.213915]
[1736523324183,0.023,93508.0,93504.0,0.005]
[1736523324369,0.023,93508.0,93495.0,0.31321476]
[1736523324739,0.023,93508.0,93495.0,0.10429976]
[1736523324941,0.213887,93507.0,93495.0,0.10429976]
[1736523325145,0.023,93514.0,93472.0,0.075]
[1736523325373,0.023,93506.0,93480.0,0.10429976]
[1736523325753,0.023,93506.0,93490.0,0.213924]
[1736523325972,0.173,93510.0,93490.0,0.10429976]
[1736523326174,0.023,93503.0,93490.0,0.10429976]
[1736523326612,0.023,93504.0,93490.0,0.10429976]
[1736523326757,0.023,93504.0,93491.0,0.213924]
[1736523327174,0.023,93505.0,93490.0,0.10629976]
[1736523327336,0.023,93505.0,93490.0,0.10429976]
[1736523327531,0.023,93502.0,93490.0,0.10429976]
[1736523327780,0.023,93503.0,93490.0,0.10629976]
[1736523327953,0.0259895,93502.0,93462.0,0.048]
[1736523328160,0.213965,93473.0,93462.0,0.048]
[1736523328343,0.10429976,93501.0,93449.0,0.21402]
[1736523328344,0.15,93469.0,93449.0,0.21402]
[1736523328553,0.023,93463.0,93445.0,0.048]
[1736523328965,0.023,93464.0,93445.0,0.048]
[1736523329171,0.023,93464.0,93431.0,0.0784]
[1736523329172,0.023,93458.0,93431.0,0.0784]
[1736523329379,0.27729976,93458.0,93416.0,0.296695]
[1736523329582,0.38702,93449.0,93413.0,0.0488]
[1736523329784,0.21407,93427.0,93413.0,0.0488]
[1736523330058,0.38707,93427.0,93408.0,0.0001702]
[1736523330270,0.38707,93427.0,93426.0,0.00031659]
[1736523331382,0.59568265,93427.0,93426.0,0.00031659]
[1736523331584,0.60763212,93427.0,93426.0,0.00031659]
[1736523331786,0.52611262,93427.0,93426.0,0.00031659]
[1736523333176,0.42081286,93427.0,93426.0,0.00031659]
[1736523333383,0.43417286,93427.0,93426.0,0.00031659]
[1736523333798,0.25,93415.0,93371.0,0.0799]
[1736523334040,0.214114,93408.0,93399.0,0.00055759]
[1736523334248,0.173,93402.0,93399.0,0.00055759]
[1736523334849,0.428254,93403.0,93399.0,0.00055759]
[1736523334850,0.273,93400.0,93399.0,0.00055759]
[1736523335005,0.27729976,93400.0,93399.0,0.00055759]
[1736523335207,0.173,93400.0,93399.0,0.00055759]
[1736523335896,0.03472315,93400.0,93399.0,0.00055759]
[1736523336326,0.023,93400.0,93399.0,0.00055759]
[1736523336537,0.296505,93413.0,93399.0,0.00755759]
[1736523336538,0.001,93408.0,93399.0,0.00755759]
[1736523336743,0.214128,93402.0,93399.0,0.00755759]
[1736523336946,0.023,93401.0,93399.0,0.00755759]
[1736523337366,0.023,93406.0,93399.0,0.00055759]
[1736523337573,0.15,93416.0,93399.0,0.00055759]
[1736523337574,0.01136,93428.0,93400.0,0.10429976]
[1736523337777,0.01170425,93426.0,93400.0,0.10429976]
[1736523337979,0.15,93426.0,93401.0,0.10429976]
[1736523338212,0.15,93424.0,93402.0,0.214128]
[1736523338429,0.023,93417.0,93403.0,0.10429976]
[1736523338632,0.214075,93425.0,93404.0,0.214123]
[1736523338823,0.214075,93425.0,93410.0,0.214107]
[1736523339140,0.023,93420.0,93406.0,0.214119]
[1736523339332,0.023,93423.0,93410.0,0.214108]
[1736523339755,0.15,93424.0,93400.0,0.214132]
[1736523339950,0.01178461,93430.0,93401.0,0.10537031]
[1736523340185,0.001,93425.0,93401.0,0.10537031]
[1736523340421,0.023,93423.0,93401.0,0.10429976]
[1736523340598,0.023,93423.0,93399.0,0.00355759]
[1736523340599,0.023,93424.0,93399.0,0.00355759]
[1736523340806,0.023,93411.0,93399.0,0.00355759]
[1736523341002,0.023,93404.0,93399.0,0.00355759]
[1736523341405,0.023,93409.0,93399.0,0.00055759]
[1736523341852,0.15,93422.0,93399.0,0.00055759]
[1736523342083,0.214128,93402.0,93399.0,0.00055759]
[1736523342248,0.387132,93400.0,93399.0,0.00055759]
[1736523342892,0.49143176,93400.0,93399.0,0.00055759]
[1736523343301,0.387132,93400.0,93399.0,0.00055759]
[1736523343518,0.387132,93400.0,93399.0,0.00355759]
[1736523343723,0.387132,93400.0,93399.0,0.00055759]
[1736523343927,0.173,93400.0,93399.0,0.00055759]
[1736523344127,0.024,93400.0,93399.0,0.00055759]
[1736523344348,0.023,93400.0,93399.0,0.00055759]
[1736523344762,0.023,93400.0,93399.0,0.00255759]
[1736523344969,0.023,93400.0,93399.0,0.00055759]
[1736523346376,0.023,93400.0,93399.0,0.00655759]
[1736523346887,0.023,93400.0,93399.0,0.00355759]
[1736523347144,0.023,93400.0,93399.0,0.11485735]
[1736523347145,0.001,93400.0,93399.0,0.11485735]
[1736523347321,0.214057,93433.0,93400.0,0.214132]
[1736523347528,0.01132,93437.0,93401.0,0.10537022]
[1736523347847,0.214073,93426.0,93414.0,0.214098]
[1736523348085,0.214065,93430.0,93419.0,0.214089]
[1736523348581,0.15,93423.0,93409.0,0.21411]
[1736523348792,0.023,93422.0,93413.0,0.214101]
[1736523349146,0.023,93422.0,93409.0,0.21411]
[1736523349351,0.023,93420.0,93409.0,0.21411]
[1736523350378,0.023,93422.0,93409.0,0.21411]
[1736523350579,0.15,93423.0,93409.0,0.001]
[1736523350848,0.023,93419.0,93410.0,0.214109]
[1736523351489,0.023,93420.0,93411.0,0.214107]
[1736523351688,0.023,93420.0,93403.0,0.214125]
[1736523351895,0.15,93416.0,93398.0,0.0001704]
[1736523352112,0.023,93404.0,93398.0,0.0001704]
[1736523352328,0.214125,93403.0,93398.0,0.0001704]
[1736523352537,0.173,93402.0,93398.0,0.0001704]
[1736523352730,0.023,93400.0,93398.0,0.0001704]
[1736523353099,0.0213975,93410.0,93398.0,0.0001704]
[1736523353100,0.214114,93408.0,93398.0,0.0001704]
[1736523353297,0.214089,93419.0,93400.0,0.10429976]
[1736523353499,0.001,93403.0,93400.0,0.10429976]
[1736523353702,0.214089,93419.0,93400.0,0.10429976]
[1736523353703,0.023,93413.0,93402.0,0.214128]
[1736523354148,0.214084,93422.0,93407.0,0.214115]
[1736523354349,0.01171675,93429.0,93403.0,0.10429976]
[1736523354551,0.01171675,93429.0,93404.0,0.10429976]
[1736523354725,0.15,93431.0,93418.0,0.214091]
[1736523354903,0.364061,93431.0,93414.0,0.214098]
[1736523355256,0.023,93428.0,93414.0,0.214098]
[1736523355524,0.023,93428.0,93417.0,0.214091]
[1736523355688,0.023,93428.0,93399.0,0.04655759]
[1736523355689,0.02096106,93448.0,93418.0,0.10429976]
[1736523355900,0.079,93460.0,93420.0,0.214086]
[1736523356092,0.15,93449.0,93434.0,0.214054]
[1736523356301,0.173,93446.0,93422.0,0.214082]
[1736523356494,0.173,93446.0,93431.0,0.214061]
[1736523356495,0.023,93444.0,93431.0,0.214061]
[1736523356671,0.023,93444.0,93423.0,0.10429976]
[1736523356672,0.023,93436.0,93424.0,0.214077]
[1736523356870,0.023,93451.0,93425.0,0.10429976]
[1736523357230,0.023,93441.0,93425.0,0.10429976]
[1736523357431,0.023,93437.0,93434.0,0.001]
[1736523357568,0.173,93435.0,93434.0,0.001]
[1736523357774,0.237073,93426.0,93425.0,0.00014614]
[1736523358033,0.023,93426.0,93425.0,0.00014614]
[1736523359127,0.225319,93458.0,93425.0,0.00014614]
[1736523359128,0.01198915,93446.0,93425.0,0.00014614]
[1736523359330,0.079,93460.0,93426.0,0.10537003]
[1736523359331,0.427994,93459.0,93426.0,0.10537003]
[1736523359544,0.023,93442.0,93425.0,0.00014614]
[1736523359720,0.023,93442.0,93425.0,0.00614614]
[1736523359919,0.023,93434.0,93425.0,0.00014614]
[1736523360119,0.15,93457.0,93425.0,0.00014614]
[1736523360303,0.10429976,93456.0,93426.0,0.10429976]
[1736523360503,0.214037,93442.0,93427.0,0.21407]
[1736523360715,0.023,93439.0,93428.0,0.214068]
[1736523360955,0.023,93441.0,93427.0,0.10429976]
[1736523361158,0.237039,93441.0,93431.0,0.214059]
[1736523361360,0.023,93432.0,93425.0,0.00414614]
[1736523361561,0.15,93454.0,93425.0,0.00414614]
[1736523361762,0.15,93452.0,93426.0,0.214073]
[1736523361974,0.01196007,93455.0,93436.0,0.214049]
[1736523362180,0.01196007,93455.0,93440.0,0.21404]
[1736523362382,0.173,93448.0,93428.0,0.214068]
[1736523362614,0.173,93446.0,93427.0,0.10429976]
[1736523362822,0.023,93444.0,93425.0,0.00414614]
[1736523363021,0.023,93431.0,93425.0,0.00414614]
[1736523363261,0.023,93441.0,93426.0,0.214073]
[1736523363487,0.21401,93454.0,93428.0,0.214068]
[1736523363691,0.002,93455.0,93429.0,0.15349976]
[1736523363892,0.02135666,93469.0,93429.0,0.15456989]
[1736523364101,0.22495367,93468.0,93429.0,0.15456989]
[1736523364324,0.12729976,93467.0,93429.0,0.15349976]
[1736523364498,0.173,93466.0,93429.0,0.15349976]
[1736523364723,0.21402,93449.0,93434.0,0.214053]
[1736523364910,0.023,93448.0,93435.0,0.214052]
[1736523365110,0.003,93455.0,93429.0,0.15349976]
[1736523365111,0.023,93446.0,93436.0,0.214048]
[1736523365309,0.023,93446.0,93429.0,0.15349976]
[1736523365519,0.023,93447.0,93429.0,0.15349976]
[1736523365933,0.023,93447.0,93430.0,0.214064]
[1736523366138,0.023,93447.0,93429.0,0.15349976]
[1736523366368,0.01498134,93469.0,93432.0,0.18449976]
[1736523366586,0.213953,93479.0,93440.0,0.30586707]
[1736523366794,0.006,93467.0,93441.0,0.21510793]
[1736523366999,0.15,93478.0,93462.0,0.213989]
[1736523367225,0.02150888,93489.0,93463.0,0.10429976]
[1736523367417,0.213919,93494.0,93474.0,0.213962]
[1736523367620,0.213919,93494.0,93475.0,0.10429976]
[1736523367952,0.0184,93476.0,93475.0,0.10429976]
[1736523368184,0.0164,93476.0,93475.0,0.10429976]
[1736523368400,0.01654576,93476.0,93474.0,0.213962]
[1736523368603,0.01854576,93476.0,93464.0,0.0466]
[1736523368809,0.01854576,93476.0,93451.0,0.0814]
[1736523368810,0.01854576,93476.0,93453.0,0.21401]
[1736523369024,0.023,93468.0,93450.0,0.214018]
[1736523369224,0.002,93469.0,93432.0,0.214059]
[1736523369398,0.173,93451.0,93439.0,0.214041]
[1736523369640,0.173,93451.0,93443.0,0.214033]
[1736523369851,0.173,93451.0,93439.0,0.214041]
[1736523370063,0.387017,93451.0,93435.0,0.214052]
[1736523370273,0.173,93451.0,93435.0,0.214052]
[1736523370483,0.023,93450.0,93436.0,0.214049]
[1736523370667,0.023,93450.0,93440.0,0.214041]
[1736523370911,0.023,93450.0,93443.0,0.009]
[1736523371122,0.023,93448.0,93439.0,0.003]
[1736523371544,0.023,93450.0,93439.0,0.003]
[1736523371963,0.214002,93457.0,93440.0,0.214041]
[1736523372168,0.15,93458.0,93441.0,0.10429976]
[1736523372381,0.295957,93477.0,93449.0,0.214019]
[1736523372587,0.023,93469.0,93442.0,0.214036]
[1736523372761,0.023,93464.0,93448.0,0.214022]
[1736523372971,0.023,93464.0,93452.0,0.214013]
[1736523373183,0.23050376,93476.0,93453.0,0.10536971]
[1736523373397,0.01654576,93476.0,93453.0,0.18836971]
[1736523373609,0.02354576,93476.0,93472.0,0.427932]
[1736523374016,0.02354576,93476.0,93454.0,0.0451]
[1736523374017,0.01654576,93476.0,93460.0,0.213994]
[1736523374227,0.01654576,93476.0,93462.0,0.10429976]
[1736523374228,0.001,93464.0,93462.0,0.10429976]
[1736523374437,0.001,93464.0,93463.0,0.20536938]
[1736523374642,0.01654576,93476.0,93468.0,0.1]
[1736523374847,0.01654576,93476.0,93457.0,0.15]
[1736523374848,0.01754576,93476.0,93475.0,0.21396]
[1736523375050,0.01754576,93476.0,93475.0,0.31825976]
[1736523375258,0.01754576,93476.0,93472.0,0.008]
[1736523375459,0.023,93475.0,93472.0,0.008]
[1736523375660,0.01754576,93476.0,93473.0,0.31826476]
[1736523375896,0.01754576,93476.0,93473.0,0.31726476]
[1736523376070,0.023,93475.0,93472.0,0.008]
[1736523376514,0.01654576,93476.0,93451.0,0.214014]
[1736523376721,0.173,93473.0,93472.0,0.003]
[1736523377314,0.01654576,93476.0,93467.0,0.213978]
[1736523377518,0.01654576,93476.0,93472.0,0.01]
[1736523377930,0.01654576,93476.0,93473.0,0.213964]
[1736523378180,0.01654576,93476.0,93473.0,0.53222876]
[1736523378413,0.01654576,93476.0,93473.0,0.31826376]
[1736523378622,0.023,93475.0,93472.0,0.003]
[1736523378824,0.023,93475.0,93473.0,0.213965]
[1736523378997,0.01654576,93476.0,93473.0,0.31826476]
[1736523379441,0.023,93475.0,93473.0,0.213965]
[1736523379643,0.023,93475.0,93472.0,0.001]
[1736523379858,0.023,93475.0,93469.0,0.213972]
[1736523380075,0.023,93475.0,93472.0,0.213965]
[1736523380292,0.023,93475.0,93473.0,0.10729976]
[1736523380493,0.023,93475.0,93473.0,0.009]
[1736523380693,0.023,93475.0,93470.0,0.213972]
[1736523380898,0.023,93475.0,93471.0,0.10429976]
[1736523381106,0.023,93475.0,93472.0,0.213967]
[1736523381306,0.023,93475.0,93472.0,0.427934]
[1736523381510,0.023,93475.0,93469.0,0.002]
[1736523381724,0.386963,93474.0,93473.0,0.005]
[1736523382162,0.023,93474.0,93473.0,0.005]
[1736523382374,0.01654576,93476.0,93473.0,0.10929976]
[1736523382589,0.01654576,93476.0,93474.0,0.31826276]
[1736523383206,0.023,93475.0,93474.0,0.31826276]
[1736523384057,0.01654576,93476.0,93474.0,0.32926276]
[1736523384583,0.01654576,93476.0,93474.0,0.32626276]
[1736523384784,0.023,93475.0,93474.0,0.31826276]
[1736523384977,0.01654576,93476.0,93474.0,0.32126276]
[1736523385786,0.023,93475.0,93474.0,0.32126276]
[1736523386019,0.023,93475.0,93474.0,0.32926276]
[1736523386217,0.023,93475.0,93474.0,0.32626276]
[1736523386504,0.023,93475.0,93473.0,0.213963]
[1736523386708,0.023,93475.0,93474.0,0.011]
[1736523386911,0.023,93475.0,93474.0,0.003]
[1736523387094,0.023,93475.0,93473.0,0.213963]
[1736523387315,0.023,93475.0,93474.0,0.008]
[1736523387738,0.04835881,93475.0,93474.0,0.008]
[1736523387975,0.023,93475.0,93474.0,0.008]
[1736523388196,0.28875456,93475.0,93474.0,0.011]
[1736523389164,0.28875456,93475.0,93474.0,0.003]
[1736523389408,0.38875456,93475.0,93474.0,0.003]
[1736523389610,0.15,93453.0,93436.0,0.21405]
[1736523389729,0.023,93452.0,93436.0,0.21405]
[1736523389927,0.023,93452.0,93435.0,0.0001706]
[1736523390192,0.15,93450.0,93424.0,0.0484]
[1736523390362,0.15,93450.0,93419.0,0.214087]
[1736523390363,0.023,93436.0,93419.0,0.214087]
[1736523390563,0.214042,93440.0,93420.0,0.10429976]
[1736523390800,0.023,93434.0,93414.0,0.22574967]
[1736523391051,0.173,93440.0,93416.0,0.214096]
[1736523391179,0.023,93433.0,93416.0,0.31839576]
[1736523391796,0.023,93433.0,93416.0,0.00048759]
[1736523391981,0.173,93431.0,93416.0,0.00048759]
[1736523392616,0.09145108,93449.0,93417.0,0.10429976]
[1736523392814,0.214036,93443.0,93419.0,0.001]
[1736523393093,0.15,93448.0,93419.0,0.001]
[1736523393339,0.15,93448.0,93416.0,0.00048759]
[1736523393340,0.387047,93437.0,93436.0,0.001]
[1736523393513,0.214052,93435.0,93416.0,0.00048759]
[1736523393720,0.214039,93441.0,93424.0,0.214076]
[1736523393923,0.214022,93448.0,93425.0,0.10429976]
[1736523394137,0.214022,93448.0,93416.0,0.00048759]
[1736523394138,0.10429976,93448.0,93416.0,0.00048759]
[1736523394286,0.023,93431.0,93417.0,0.10429976]
[1736523394511,0.023,93431.0,93419.0,0.001]
[1736523394710,0.21406,93432.0,93416.0,0.21458259]
[1736523394909,0.173,93435.0,93420.0,0.214086]
[1736523395113,0.10729976,93448.0,93429.0,0.214064]
[1736523395114,0.003,93448.0,93429.0,0.214064]
[1736523395320,0.214025,93447.0,93424.0,0.001]
[1736523395514,0.023,93434.0,93424.0,0.001]
[1736523396099,0.023,93430.0,93424.0,0.001]
[1736523396305,0.023,93428.0,93424.0,0.001]
[1736523396543,0.15,93428.0,93416.0,0.00048759]
[1736523396748,0.023,93424.0,93416.0,0.00048759]
[1736523396969,0.02195094,93447.0,93417.0,0.10429976]
[1736523397157,0.173,93439.0,93424.0,0.214075]
[1736523397589,0.173,93437.0,93418.0,0.214091]
[1736523397790,0.214054,93434.0,93419.0,0.10429976]
[1736523397993,0.023,93435.0,93420.0,0.214086]
[1736523398157,0.023,93435.0,93424.0,0.006]
[1736523398375,0.023,93433.0,93419.0,0.10429976]
[1736523398577,0.023,93433.0,93416.0,0.00048759]
[1736523398781,0.023,93441.0,93417.0,0.10429976]
[1736523398979,0.15,93442.0,93418.0,0.00107039]
[1736523399218,0.214023,93448.0,93426.0,0.214072]
[1736523399362,0.214025,93447.0,93416.0,0.00348759]
[1736523399723,0.0292523,93448.0,93424.0,0.001]
[1736523399724,0.023,93435.0,93424.0,0.001]
[1736523399886,0.023,93438.0,93424.0,0.001]
[1736523400080,0.173,93435.0,93418.0,0.214091]
[1736523400423,0.02116746,93440.0,93416.0,0.00048759]
[1736523400582,0.023,93438.0,93417.0,0.10429976]
[1736523400805,0.001,93441.0,93417.0,0.10537013]
[1736523401010,0.001,93441.0,93424.0,0.001]
[1736523401242,0.001,93441.0,93435.0,0.214051]
[1736523401378,0.001,93441.0,93416.0,0.00048759]
[1736523401583,0.173,93439.0,93416.0,0.00048759]
[1736523401820,0.023,93438.0,93416.0,0.00048759]
[1736523402037,0.023,93432.0,93416.0,0.00048759]
[1736523402224,0.023,93435.0,93398.0,0.1001704]
[1736523402569,0.000486,93432.0,93405.0,0.10429976]
[1736523402772,0.000486,93432.0,93414.0,0.214098]
[1736523402983,0.173486,93432.0,93405.0,0.31841876]
[1736523403191,0.173,93422.0,93405.0,0.10429976]
[1736523403414,0.000486,93432.0,93423.0,0.214079]
[1736523403697,0.000486,93432.0,93424.0,0.10429976]
[1736523403893,0.000486,93432.0,93426.0,0.214072]
[1736523404068,0.000486,93432.0,93430.0,0.214063]
[1736523404271,0.000486,93432.0,93427.0,0.31836976]
[1736523404451,0.023,93430.0,93405.0,0.02017044]
[1736523404657,0.023,93425.0,93407.0,0.214116]
[1736523404859,0.023,93425.0,93409.0,0.214112]
[1736523405076,0.173,93428.0,93409.0,0.10429976]
[1736523405317,0.000486,93432.0,93409.0,0.10429976]
[1736523405461,0.15,93424.0,93410.0,0.214109]
[1736523405868,0.023,93421.0,93409.0,0.10429976]
[1736523406087,0.023,93421.0,93399.0,7e-05]
[1736523406088,0.023,93412.0,93399.0,7e-05]
[1736523406300,0.364132,93400.0,93399.0,7e-05]
[1736523406503,0.387132,93400.0,93399.0,7e-05]
[1736523406922,0.49143176,93400.0,93399.0,7e-05]
[1736523407142,0.5126639,93400.0,93399.0,7e-05]
[1736523407346,0.5126639,93400.0,93399.0,0.00107]
[1736523407347,0.60686439,93400.0,93399.0,0.00107]
[1736523407556,0.68666439,93400.0,93399.0,7e-05]
[1736523407768,0.68666439,93400.0,93399.0,0.00021614]
[1736523407966,0.68966439,93400.0,93399.0,0.00021614]
[1736523408216,0.69166439,93400.0,93399.0,0.00021614]
[1736523408856,0.50468544,93400.0,93399.0,0.00021614]
[1736523409067,0.03775344,93400.0,93398.0,0.09538654]
[1736523409267,0.00214569,93400.0,93398.0,0.09538654]
[1736523409483,0.00614569,93400.0,93398.0,0.09538654]
[1736523409708,0.00614569,93400.0,93399.0,0.1053704]
[1736523409928,0.00214569,93400.0,93399.0,0.31843476]
[1736523410130,0.00614569,93400.0,93399.0,0.31843476]
[1736523410340,0.00414569,93400.0,93399.0,0.31843476]
[1736523410563,0.00014569,93400.0,93399.0,0.41843476]
[1736523410766,0.00214569,93400.0,93399.0,0.55087673]
[1736523410964,0.00214569,93400.0,93399.0,0.80087673]
[1736523411169,0.00558496,93417.0,93406.0,0.1]
[1736523411420,0.00607246,93417.0,93416.0,0.31839576]
[1736523411962,0.00607246,93417.0,93416.0,0.36729576]
[1736523412173,0.01138823,93459.0,93419.0,0.1]
[1736523412377,0.00014625,93462.0,93446.0,0.10429976]
[1736523412720,0.00014625,93462.0,93460.0,0.213994]
[1736523412857,0.00014625,93462.0,93461.0,0.10536953]
[1736523413036,0.00014625,93462.0,93461.0,0.10429976]
[1736523413241,0.00014625,93462.0,93461.0,0.10536948]
[1736523413870,0.00114625,93462.0,93461.0,0.16376947]
[1736523414315,0.00014625,93462.0,93461.0,0.15476947]
[1736523414521,8.53e-05,93480.0,93476.0,0.363958]
[1736523414729,8.53e-05,93480.0,93476.0,0.56825776]
[1736523415154,8.53e-05,93480.0,93476.0,0.46825776]
[1736523415458,8.53e-05,93480.0,93476.0,0.31825776]
[1736523415730,8.53e-05,93480.0,93476.0,0.46825776]
[1736523415972,8.53e-05,93480.0,93476.0,0.56825776]
[1736523416214,8.53e-05,93480.0,93476.0,0.57725776]
[1736523416426,8.53e-05,93480.0,93476.0,0.33897071]
[1736523417089,0.0010853,93477.0,93476.0,0.34497071]
[1736523418361,0.00097449,93477.0,93476.0,0.34497071]
[1736523418789,0.00097449,93477.0,93476.0,0.33325776]
[1736523419236,0.00097449,93477.0,93476.0,0.43325776]
[1736523419409,0.00097449,93477.0,93476.0,0.68325776]
[1736523420080,0.00097449,93477.0,93476.0,0.76115776]
[1736523420310,8.53e-05,93488.0,93487.0,0.563933]
[1736523420520,8.53e-05,93488.0,93487.0,0.66823276]
[1736523420741,3e-07,93503.0,93502.0,0.563899]
[1736523420968,8.53e-05,93544.0,93516.0,0.2]
[1736523421182,8.53e-05,93544.0,93525.0,0.1]
[1736523421392,8.53e-05,93544.0,93526.0,0.56921267]
[1736523421612,6.6e-07,93527.0,93526.0,0.71524376]
[1736523421821,8.53e-05,93544.0,93526.0,0.71524376]
[1736523421822,8.53e-05,93544.0,93540.0,0.35]
[1736523422030,8.53e-05,93544.0,93540.0,0.67935176]
[1736523422260,0.00023135,93541.0,93540.0,0.67935176]
[1736523422885,8.52e-05,93556.0,93544.0,0.1]
[1736523423094,8.52e-05,93556.0,93555.0,0.71407676]
[1736523423563,8.52e-05,93556.0,93555.0,0.7414691]
[1736523423782,0.01152387,93609.0,93570.0,0.2]
[1736523423989,8.53e-05,93617.0,93613.0,0.213643]
[1736523424212,9.995e-05,93643.0,93614.0,0.10036786]
[1736523424213,9.179e-05,93643.0,93614.0,0.10036786]
[1736523424427,0.00014613,93617.0,93615.0,0.36364]
[1736523424643,0.00014613,93617.0,93616.0,0.25429976]
[1736523424889,0.00014613,93617.0,93616.0,0.35429976]
[1736523425103,0.00014613,93617.0,93616.0,0.25429976]
[1736523425545,0.00014613,93617.0,93616.0,0.10429976]
[1736523425754,0.00014613,93617.0,93616.0,0.11689821]
[1736523426173,0.00014613,93617.0,93616.0,0.26689821]
[1736523426389,0.00014613,93617.0,93616.0,0.27483026]
[1736523426607,0.00014613,93617.0,93616.0,0.37483026]
[1736523426824,0.00014613,93617.0,93616.0,0.27483026]
[1736523427249,0.00014613,93617.0,93616.0,0.37483026]
[1736523427666,0.00014613,93617.0,93616.0,0.47473847]
[1736523428322,0.00014613,93617.0,93616.0,0.27883026]
[1736523428599,0.00014613,93617.0,93616.0,0.26983026]
[1736523428784,0.00014613,93617.0,93616.0,0.11583026]
[1736523429033,0.00114613,93617.0,93616.0,0.13289814]
[1736523429245,0.00114613,93617.0,93616.0,0.12283026]
[1736523429454,0.00114613,93617.0,93616.0,0.13183026]
[1736523429663,0.00114613,93617.0,93616.0,0.13289823]
[1736523429869,0.00114613,93617.0,93616.0,0.12389823]
[1736523430078,0.00014613,93617.0,93616.0,0.11689823]
[1736523430292,0.00014613,93617.0,93616.0,0.22589823]
[1736523430513,0.00014613,93617.0,93616.0,0.46573847]
[1736523430750,0.00014613,93617.0,93616.0,0.26583026]
[1736523430958,0.00014613,93617.0,93616.0,0.36573847]
[1736523431183,0.00014613,93617.0,93616.0,0.26583026]
[1736523431812,7e-05,93652.0,93632.0,0.213601]
[1736523432024,7e-05,93652.0,93651.0,0.46785776]
[1736523432227,0.00055663,93652.0,93651.0,0.46785776]
[1736523432448,0.00055663,93652.0,93651.0,0.56785776]
[1736523432680,0.00055663,93652.0,93651.0,0.46785776]
[1736523433331,0.00055663,93652.0,93651.0,0.48709776]
[1736523433533,0.00055663,93652.0,93651.0,0.47585776]
[1736523433758,0.00055663,93652.0,93651.0,0.49045442]
[1736523433963,0.00055663,93652.0,93651.0,0.48821442]
[1736523434167,0.00055663,93652.0,93651.0,0.49945442]
[1736523434582,0.00055663,93652.0,93651.0,0.48821442]
[1736523434784,0.1,93710.0,93651.0,0.48821442]
[1736523434785,0.1,93734.0,93669.0,0.213517]
[1736523435015,9.179e-05,93705.0,93693.0,0.213461]
[1736523435219,0.00014598,93696.0,93694.0,0.10429976]
[1736523435427,0.00014598,93696.0,93694.0,0.31775976]
[1736523436697,0.00314598,93696.0,93694.0,0.31775976]
[1736523436900,0.023,93695.0,93686.0,0.213476]
[1736523437113,0.00214598,93696.0,93692.0,0.426929]
[1736523437320,0.00214598,93696.0,93694.0,0.005]
[1736523437523,0.023,93695.0,93694.0,0.005]
[1736523437730,0.17309179,93695.0,93694.0,0.005]
[1736523437938,9.179e-05,93665.0,93633.0,0.0496]
[1736523438143,9.179e-05,93665.0,93651.0,0.213556]
[1736523438360,9.179e-05,93660.0,93627.0,0.02135134]
[1736523438572,9.179e-05,93658.0,93631.0,0.213604]
[1736523438788,9.179e-05,93658.0,93623.0,0.11110821]
[1736523438789,9.179e-05,93704.0,93695.0,0.213457]
[1736523438995,9.179e-05,93704.0,93696.0,0.105367]
[1736523439212,9.179e-05,93704.0,93696.0,0.09929976]
[1736523439645,9.179e-05,93704.0,93697.0,0.213454]
[1736523439872,9.179e-05,93704.0,93701.0,0.213443]
[1736523440302,9.179e-05,93704.0,93701.0,0.53118676]
[1736523440742,9.179e-05,93704.0,93702.0,0.213442]
[1736523440947,0.00023126,93711.0,93708.0,0.213427]
[1736523441158,0.00023126,93711.0,93704.0,0.213438]
[1736523441159,8.52e-05,93734.0,93711.0,0.640266]